Workbook

Sheet ■散布量計算シート
F2: 散布量計算
E3: ＜＜ 金属製スイッチノズル ＞＞
B5: お客様 | C5: おところ | F5: お名前 | J5: 様
B7: 製品名 | C7: 3S-
B9: 計算担当者 | I9: =NOW() -> 2024-11-22T14:46:47.200 | K9: 作成
B12: ■散布条件-１
B14: 栽培品目/圃場名 | G14: 噴霧方向 | H14: 噴板名称 | I14: ノズル個数 | J14: 吐出量
J15: =作業シート!G17 -> 0.0 | K15: =IF($J$18>0,J15/$J$18,0) -> 0%
B16: 散布幅（列間隔） | J16: =作業シート!G18 -> 0.0 | K16: =IF($J$18>0,J16/$J$18,0) -> 0% | L16: 噴霧ノズル 最大個数
C17: 走行距離 | D17: =IF(D16<>"",VLOOKUP(D16,走行距離,2,FALSE),"") ->  | E17: (m/10a) | J17: =作業シート!G19 -> 0.0 | K17: 0%
B18: 噴霧圧力 | E18: (MPa) | H18: 合 計 | I18: =SUM(I15:I17) -> 0 | J18: =J15+J16+J17 -> 0.0 | K18: (L/分） | L18: =IF(D7<>0,VLOOKUP(D7,車速表!A:AH,34,FALSE),0) -> 0
D20: 散 布 量 （L/10a）
B21: エンジン回転数(rpm) | D21: 1600 | E21: 1800 | F21: 2000 | G21: 2200 | H21: 2400 | I21: 2500 | J21: 2600 | K21: 2700 | L21: 2800
B22: 車速段 | C22: 低 - 1 | D22: =IF(ISERROR(作業シート!C23),"",INT(作業シート!C23/10+0.5)*10) -> 0 | E22: =IF(ISERROR(作業シート!D23),"",INT(作業シート!D23/10+0.5)*10) -> 0 | F22: =IF(ISERROR(作業シート!E23),"",INT(作業シート!E23/10+0.5)*10) -> 0 | G22: =IF(ISERROR(作業シート!F23),"",INT(作業シート!F23/10+0.5)*10) -> 0 | H22: =IF(ISERROR(作業シート!G23),"",INT(作業シート!G23/10+0.5)*10) -> 0 | I22: =IF(ISERROR(作業シート!H23),"",INT(作業シート!H23/10+0.5)*10) -> 0 | J22: =IF(ISERROR(作業シート!I23),"",INT(作業シート!I23/10+0.5)*10) -> 0 | K22: =IF(ISERROR(作業シート!J23),"",INT(作業シート!J23/10+0.5)*10) -> 0 | L22: =IF(ISERROR(作業シート!K23),"",INT(作業シート!K23/10+0.5)*10) -> 0
C23: 中 - 1 | D23: =IF(ISERROR(作業シート!C24),"",INT(作業シート!C24/10+0.5)*10) -> 0 | E23: =IF(ISERROR(作業シート!D24),"",INT(作業シート!D24/10+0.5)*10) -> 0 | F23: =IF(ISERROR(作業シート!E24),"",INT(作業シート!E24/10+0.5)*10) -> 0 | G23: =IF(ISERROR(作業シート!F24),"",INT(作業シート!F24/10+0.5)*10) -> 0 | H23: =IF(ISERROR(作業シート!G24),"",INT(作業シート!G24/10+0.5)*10) -> 0 | I23: =IF(ISERROR(作業シート!H24),"",INT(作業シート!H24/10+0.5)*10) -> 0 | J23: =IF(ISERROR(作業シート!I24),"",INT(作業シート!I24/10+0.5)*10) -> 0 | K23: =IF(ISERROR(作業シート!J24),"",INT(作業シート!J24/10+0.5)*10) -> 0 | L23: =IF(ISERROR(作業シート!K24),"",INT(作業シート!K24/10+0.5)*10) -> 0
C24: 低 - 2 | D24: =IF(ISERROR(作業シート!C25),"",INT(作業シート!C25/10+0.5)*10) -> 0 | E24: =IF(ISERROR(作業シート!D25),"",INT(作業シート!D25/10+0.5)*10) -> 0 | F24: =IF(ISERROR(作業シート!E25),"",INT(作業シート!E25/10+0.5)*10) -> 0 | G24: =IF(ISERROR(作業シート!F25),"",INT(作業シート!F25/10+0.5)*10) -> 0 | H24: =IF(ISERROR(作業シート!G25),"",INT(作業シート!G25/10+0.5)*10) -> 0 | I24: =IF(ISERROR(作業シート!H25),"",INT(作業シート!H25/10+0.5)*10) -> 0 | J24: =IF(ISERROR(作業シート!I25),"",INT(作業シート!I25/10+0.5)*10) -> 0 | K24: =IF(ISERROR(作業シート!J25),"",INT(作業シート!J25/10+0.5)*10) -> 0 | L24: =IF(ISERROR(作業シート!K25),"",INT(作業シート!K25/10+0.5)*10) -> 0
C25: 中 - 2 | D25: =IF(ISERROR(作業シート!C26),"",INT(作業シート!C26/10+0.5)*10) -> 0 | E25: =IF(ISERROR(作業シート!D26),"",INT(作業シート!D26/10+0.5)*10) -> 0 | F25: =IF(ISERROR(作業シート!E26),"",INT(作業シート!E26/10+0.5)*10) -> 0 | G25: =IF(ISERROR(作業シート!F26),"",INT(作業シート!F26/10+0.5)*10) -> 0 | H25: =IF(ISERROR(作業シート!G26),"",INT(作業シート!G26/10+0.5)*10) -> 0 | I25: =IF(ISERROR(作業シート!H26),"",INT(作業シート!H26/10+0.5)*10) -> 0 | J25: =IF(ISERROR(作業シート!I26),"",INT(作業シート!I26/10+0.5)*10) -> 0 | K25: =IF(ISERROR(作業シート!J26),"",INT(作業シート!J26/10+0.5)*10) -> 0 | L25: =IF(ISERROR(作業シート!K26),"",INT(作業シート!K26/10+0.5)*10) -> 0
C26: 低 - 3 | D26: =IF(ISERROR(作業シート!C27),"",INT(作業シート!C27/10+0.5)*10) -> 0 | E26: =IF(ISERROR(作業シート!D27),"",INT(作業シート!D27/10+0.5)*10) -> 0 | F26: =IF(ISERROR(作業シート!E27),"",INT(作業シート!E27/10+0.5)*10) -> 0 | G26: =IF(ISERROR(作業シート!F27),"",INT(作業シート!F27/10+0.5)*10) -> 0 | H26: =IF(ISERROR(作業シート!G27),"",INT(作業シート!G27/10+0.5)*10) -> 0 | I26: =IF(ISERROR(作業シート!H27),"",INT(作業シート!H27/10+0.5)*10) -> 0 | J26: =IF(ISERROR(作業シート!I27),"",INT(作業シート!I27/10+0.5)*10) -> 0 | K26: =IF(ISERROR(作業シート!J27),"",INT(作業シート!J27/10+0.5)*10) -> 0 | L26: =IF(ISERROR(作業シート!K27),"",INT(作業シート!K27/10+0.5)*10) -> 0
C27: 中 - 3 | D27: =IF(ISERROR(作業シート!C28),"",INT(作業シート!C28/10+0.5)*10) -> 0 | E27: =IF(ISERROR(作業シート!D28),"",INT(作業シート!D28/10+0.5)*10) -> 0 | F27: =IF(ISERROR(作業シート!E28),"",INT(作業シート!E28/10+0.5)*10) -> 0 | G27: =IF(ISERROR(作業シート!F28),"",INT(作業シート!F28/10+0.5)*10) -> 0 | H27: =IF(ISERROR(作業シート!G28),"",INT(作業シート!G28/10+0.5)*10) -> 0 | I27: =IF(ISERROR(作業シート!H28),"",INT(作業シート!H28/10+0.5)*10) -> 0 | J27: =IF(ISERROR(作業シート!I28),"",INT(作業シート!I28/10+0.5)*10) -> 0 | K27: =IF(ISERROR(作業シート!J28),"",INT(作業シート!J28/10+0.5)*10) -> 0 | L27: =IF(ISERROR(作業シート!K28),"",INT(作業シート!K28/10+0.5)*10) -> 0
B29: 噴霧ポンプ吐出量(L/分) | D29: =IF(ISERROR(作業シート!C29),"",作業シート!C29) -> 0 | E29: =IF(ISERROR(作業シート!D29),"",作業シート!D29) -> 0 | F29: =IF(ISERROR(作業シート!E29),"",作業シート!E29) -> 0 | G29: =IF(ISERROR(作業シート!F29),"",作業シート!F29) -> 0 | H29: =IF(ISERROR(作業シート!G29),"",作業シート!G29) -> 0 | I29: =IF(ISERROR(作業シート!H29),"",作業シート!H29) -> 0 | J29: =IF(ISERROR(作業シート!I29),"",作業シート!I29) -> 0 | K29: =IF(ISERROR(作業シート!J29),"",作業シート!J29) -> 0 | L29: =IF(ISERROR(作業シート!K29),"",作業シート!K29) -> 0
B30: 使用時風量 (H) | D30: =IF(ISERROR(作業シート!C30),"",作業シート!C30) -> 0 | E30: =IF(ISERROR(作業シート!D30),"",作業シート!D30) -> 0 | F30: =IF(ISERROR(作業シート!E30),"",作業シート!E30) -> 0 | G30: =IF(ISERROR(作業シート!F30),"",作業シート!F30) -> 0 | H30: =IF(ISERROR(作業シート!G30),"",作業シート!G30) -> 0 | I30: =IF(ISERROR(作業シート!H30),"",作業シート!H30) -> 0 | J30: =IF(ISERROR(作業シート!I30),"",作業シート!I30) -> 0 | K30: =IF(ISERROR(作業シート!J30),"",作業シート!J30) -> 0 | L30: =IF(ISERROR(作業シート!K30),"",作業シート!K30) -> 0
C31: (㎥/分) (L) | D31: =IF(ISERROR(作業シート!C31),"",作業シート!C31) -> 0 | E31: =IF(ISERROR(作業シート!D31),"",作業シート!D31) -> 0 | F31: =IF(ISERROR(作業シート!E31),"",作業シート!E31) -> 0 | G31: =IF(ISERROR(作業シート!F31),"",作業シート!F31) -> 0 | H31: =IF(ISERROR(作業シート!G31),"",作業シート!G31) -> 0 | I31: =IF(ISERROR(作業シート!H31),"",作業シート!H31) -> 0 | J31: =IF(ISERROR(作業シート!I31),"",作業シート!I31) -> 0 | K31: =IF(ISERROR(作業シート!J31),"",作業シート!J31) -> 0 | L31: =IF(ISERROR(作業シート!K31),"",作業シート!K31) -> 0
B32: 散布時間 | C32: 中-1（分） | D32: =IF(AND(D22>0,$C$32="低-1（分）"),$D$17/1000/作業シート!C6*60,IF(AND(D23>0,$C$32="中-1（分）"),$D$17/1000/作業シート!C7*60,IF(AND(D24>0,$C$32="低-2（分）"),$D$17/1000/作業シート!C8*60,IF(AND(D25>0,$C$32="中-2（分）"),$D$17/1000/作業シート!C9*60,IF(AND(D26>0,$C$32="低-3（分）"),$D$17/1000/作業シート!C10*60,IF(AND(D27>0,$C$32="中-3（分）"),$D$17/1000/作業シート!C11*60,0)))))) -> 0.0 | E32: =IF(AND(E22>0,$C$32="低-1（分）"),$D$17/1000/作業シート!D6*60,IF(AND(E23>0,$C$32="中-1（分）"),$D$17/1000/作業シート!D7*60,IF(AND(E24>0,$C$32="低-2（分）"),$D$17/1000/作業シート!D8*60,IF(AND(E25>0,$C$32="中-2（分）"),$D$17/1000/作業シート!D9*60,IF(AND(E26>0,$C$32="低-3（分）"),$D$17/1000/作業シート!D10*60,IF(AND(E27>0,$C$32="中-3（分）"),$D$17/1000/作業シート!D11*60,0)))))) -> 0.0 | F32: =IF(AND(F22>0,$C$32="低-1（分）"),$D$17/1000/作業シート!E6*60,IF(AND(F23>0,$C$32="中-1（分）"),$D$17/1000/作業シート!E7*60,IF(AND(F24>0,$C$32="低-2（分）"),$D$17/1000/作業シート!E8*60,IF(AND(F25>0,$C$32="中-2（分）"),$D$17/1000/作業シート!E9*60,IF(AND(F26>0,$C$32="低-3（分）"),$D$17/1000/作業シート!E10*60,IF(AND(F27>0,$C$32="中-3（分）"),$D$17/1000/作業シート!E11*60,0)))))) -> 0.0 | G32: =IF(AND(G22>0,$C$32="低-1（分）"),$D$17/1000/作業シート!F6*60,IF(AND(G23>0,$C$32="中-1（分）"),$D$17/1000/作業シート!F7*60,IF(AND(G24>0,$C$32="低-2（分）"),$D$17/1000/作業シート!F8*60,IF(AND(G25>0,$C$32="中-2（分）"),$D$17/1000/作業シート!F9*60,IF(AND(G26>0,$C$32="低-3（分）"),$D$17/1000/作業シート!F10*60,IF(AND(G27>0,$C$32="中-3（分）"),$D$17/1000/作業シート!F11*60,0)))))) -> 0.0 | H32: =IF(AND(H22>0,$C$32="低-1（分）"),$D$17/1000/作業シート!G6*60,IF(AND(H23>0,$C$32="中-1（分）"),$D$17/1000/作業シート!G7*60,IF(AND(H24>0,$C$32="低-2（分）"),$D$17/1000/作業シート!G8*60,IF(AND(H25>0,$C$32="中-2（分）"),$D$17/1000/作業シート!G9*60,IF(AND(H26>0,$C$32="低-3（分）"),$D$17/1000/作業シート!G10*60,IF(AND(H27>0,$C$32="中-3（分）"),$D$17/1000/作業シート!G11*60,0)))))) -> 0.0 | I32: =IF(AND(I22>0,$C$32="低-1（分）"),$D$17/1000/作業シート!H6*60,IF(AND(I23>0,$C$32="中-1（分）"),$D$17/1000/作業シート!H7*60,IF(AND(I24>0,$C$32="低-2（分）"),$D$17/1000/作業シート!H8*60,IF(AND(I25>0,$C$32="中-2（分）"),$D$17/1000/作業シート!H9*60,IF(AND(I26>0,$C$32="低-3（分）"),$D$17/1000/作業シート!H10*60,IF(AND(I27>0,$C$32="中-3（分）"),$D$17/1000/作業シート!H11*60,0)))))) -> 0.0 | J32: =IF(AND(J22>0,$C$32="低-1（分）"),$D$17/1000/作業シート!I6*60,IF(AND(J23>0,$C$32="中-1（分）"),$D$17/1000/作業シート!I7*60,IF(AND(J24>0,$C$32="低-2（分）"),$D$17/1000/作業シート!I8*60,IF(AND(J25>0,$C$32="中-2（分）"),$D$17/1000/作業シート!I9*60,IF(AND(J26>0,$C$32="低-3（分）"),$D$17/1000/作業シート!I10*60,IF(AND(J27>0,$C$32="中-3（分）"),$D$17/1000/作業シート!I11*60,0)))))) -> 0.0 | K32: =IF(AND(K22>0,$C$32="低-1（分）"),$D$17/1000/作業シート!J6*60,IF(AND(K23>0,$C$32="中-1（分）"),$D$17/1000/作業シート!J7*60,IF(AND(K24>0,$C$32="低-2（分）"),$D$17/1000/作業シート!J8*60,IF(AND(K25>0,$C$32="中-2（分）"),$D$17/1000/作業シート!J9*60,IF(AND(K26>0,$C$32="低-3（分）"),$D$17/1000/作業シート!J10*60,IF(AND(K27>0,$C$32="中-3（分）"),$D$17/1000/作業シート!J11*60,0)))))) -> 0.0 | L32: =IF(AND(L22>0,$C$32="低-1（分）"),$D$17/1000/作業シート!K6*60,IF(AND(L23>0,$C$32="中-1（分）"),$D$17/1000/作業シート!K7*60,IF(AND(L24>0,$C$32="低-2（分）"),$D$17/1000/作業シート!K8*60,IF(AND(L25>0,$C$32="中-2（分）"),$D$17/1000/作業シート!K9*60,IF(AND(L26>0,$C$32="低-3（分）"),$D$17/1000/作業シート!K10*60,IF(AND(L27>0,$C$32="中-3（分）"),$D$17/1000/作業シート!K11*60,0)))))) -> 0.0
B35: ■散布条件-2
B37: 栽培品目/圃場名 | G37: 噴霧方向 | H37: 噴板名称 | I37: ノズル個数 | J37: 吐出量
J38: =作業シート!G36 -> 0.0 | K38: =IF($J$41>0,J38/$J$41,0) -> 0%
B39: 散布幅（列間隔） | J39: =作業シート!G37 -> 0.0 | K39: =IF($J$41>0,J39/$J$41,0) -> 0% | L39: 噴霧ノズル 最大個数
C40: 走行距離 | D40: =IF(D39<>"",VLOOKUP(D39,走行距離,2,FALSE),"") ->  | E40: (m/10a) | J40: =作業シート!G38 -> 0.0 | K40: 0%
B41: 噴霧圧力 | E41: (MPa) | H41: 合 計 | I41: =SUM(I38:I40) -> 0 | J41: =J38+J39+J40 -> 0.0 | K41: (L/分） | L41: =IF(D7<>0,VLOOKUP(D7,車速表!A:AH,34,FALSE),0) -> 0
D43: 散 布 量 （L/10a）
B44: エンジン回転数(rpm) | D44: 1600 | E44: 1800 | F44: 2000 | G44: 2200 | H44: 2400 | I44: 2500 | J44: 2600 | K44: 2700 | L44: 2800
B45: 車速段 | C45: 低 - 1 | D45: =IF(ISERROR(作業シート!C42),"",INT(作業シート!C42/10+0.5)*10) -> 0 | E45: =IF(ISERROR(作業シート!D42),"",INT(作業シート!D42/10+0.5)*10) -> 0 | F45: =IF(ISERROR(作業シート!E42),"",INT(作業シート!E42/10+0.5)*10) -> 0 | G45: =IF(ISERROR(作業シート!F42),"",INT(作業シート!F42/10+0.5)*10) -> 0 | H45: =IF(ISERROR(作業シート!G42),"",INT(作業シート!G42/10+0.5)*10) -> 0 | I45: =IF(ISERROR(作業シート!H42),"",INT(作業シート!H42/10+0.5)*10) -> 0 | J45: =IF(ISERROR(作業シート!I42),"",INT(作業シート!I42/10+0.5)*10) -> 0 | K45: =IF(ISERROR(作業シート!J42),"",INT(作業シート!J42/10+0.5)*10) -> 0 | L45: =IF(ISERROR(作業シート!K42),"",INT(作業シート!K42/10+0.5)*10) -> 0
C46: 中 - 1 | D46: =IF(ISERROR(作業シート!C43),"",INT(作業シート!C43/10+0.5)*10) -> 0 | E46: =IF(ISERROR(作業シート!D43),"",INT(作業シート!D43/10+0.5)*10) -> 0 | F46: =IF(ISERROR(作業シート!E43),"",INT(作業シート!E43/10+0.5)*10) -> 0 | G46: =IF(ISERROR(作業シート!F43),"",INT(作業シート!F43/10+0.5)*10) -> 0 | H46: =IF(ISERROR(作業シート!G43),"",INT(作業シート!G43/10+0.5)*10) -> 0 | I46: =IF(ISERROR(作業シート!H43),"",INT(作業シート!H43/10+0.5)*10) -> 0 | J46: =IF(ISERROR(作業シート!I43),"",INT(作業シート!I43/10+0.5)*10) -> 0 | K46: =IF(ISERROR(作業シート!J43),"",INT(作業シート!J43/10+0.5)*10) -> 0 | L46: =IF(ISERROR(作業シート!K43),"",INT(作業シート!K43/10+0.5)*10) -> 0
C47: 低 - 2 | D47: =IF(ISERROR(作業シート!C44),"",INT(作業シート!C44/10+0.5)*10) -> 0 | E47: =IF(ISERROR(作業シート!D44),"",INT(作業シート!D44/10+0.5)*10) -> 0 | F47: =IF(ISERROR(作業シート!E44),"",INT(作業シート!E44/10+0.5)*10) -> 0 | G47: =IF(ISERROR(作業シート!F44),"",INT(作業シート!F44/10+0.5)*10) -> 0 | H47: =IF(ISERROR(作業シート!G44),"",INT(作業シート!G44/10+0.5)*10) -> 0 | I47: =IF(ISERROR(作業シート!H44),"",INT(作業シート!H44/10+0.5)*10) -> 0 | J47: =IF(ISERROR(作業シート!I44),"",INT(作業シート!I44/10+0.5)*10) -> 0 | K47: =IF(ISERROR(作業シート!J44),"",INT(作業シート!J44/10+0.5)*10) -> 0 | L47: =IF(ISERROR(作業シート!K44),"",INT(作業シート!K44/10+0.5)*10) -> 0
C48: 中 - 2 | D48: =IF(ISERROR(作業シート!C45),"",INT(作業シート!C45/10+0.5)*10) -> 0 | E48: =IF(ISERROR(作業シート!D45),"",INT(作業シート!D45/10+0.5)*10) -> 0 | F48: =IF(ISERROR(作業シート!E45),"",INT(作業シート!E45/10+0.5)*10) -> 0 | G48: =IF(ISERROR(作業シート!F45),"",INT(作業シート!F45/10+0.5)*10) -> 0 | H48: =IF(ISERROR(作業シート!G45),"",INT(作業シート!G45/10+0.5)*10) -> 0 | I48: =IF(ISERROR(作業シート!H45),"",INT(作業シート!H45/10+0.5)*10) -> 0 | J48: =IF(ISERROR(作業シート!I45),"",INT(作業シート!I45/10+0.5)*10) -> 0 | K48: =IF(ISERROR(作業シート!J45),"",INT(作業シート!J45/10+0.5)*10) -> 0 | L48: =IF(ISERROR(作業シート!K45),"",INT(作業シート!K45/10+0.5)*10) -> 0
C49: 低 - 3 | D49: =IF(ISERROR(作業シート!C46),"",INT(作業シート!C46/10+0.5)*10) -> 0 | E49: =IF(ISERROR(作業シート!D46),"",INT(作業シート!D46/10+0.5)*10) -> 0 | F49: =IF(ISERROR(作業シート!E46),"",INT(作業シート!E46/10+0.5)*10) -> 0 | G49: =IF(ISERROR(作業シート!F46),"",INT(作業シート!F46/10+0.5)*10) -> 0 | H49: =IF(ISERROR(作業シート!G46),"",INT(作業シート!G46/10+0.5)*10) -> 0 | I49: =IF(ISERROR(作業シート!H46),"",INT(作業シート!H46/10+0.5)*10) -> 0 | J49: =IF(ISERROR(作業シート!I46),"",INT(作業シート!I46/10+0.5)*10) -> 0 | K49: =IF(ISERROR(作業シート!J46),"",INT(作業シート!J46/10+0.5)*10) -> 0 | L49: =IF(ISERROR(作業シート!K46),"",INT(作業シート!K46/10+0.5)*10) -> 0
C50: 中 - 3 | D50: =IF(ISERROR(作業シート!C47),"",INT(作業シート!C47/10+0.5)*10) -> 0 | E50: =IF(ISERROR(作業シート!D47),"",INT(作業シート!D47/10+0.5)*10) -> 0 | F50: =IF(ISERROR(作業シート!E47),"",INT(作業シート!E47/10+0.5)*10) -> 0 | G50: =IF(ISERROR(作業シート!F47),"",INT(作業シート!F47/10+0.5)*10) -> 0 | H50: =IF(ISERROR(作業シート!G47),"",INT(作業シート!G47/10+0.5)*10) -> 0 | I50: =IF(ISERROR(作業シート!H47),"",INT(作業シート!H47/10+0.5)*10) -> 0 | J50: =IF(ISERROR(作業シート!I47),"",INT(作業シート!I47/10+0.5)*10) -> 0 | K50: =IF(ISERROR(作業シート!J47),"",INT(作業シート!J47/10+0.5)*10) -> 0 | L50: =IF(ISERROR(作業シート!K47),"",INT(作業シート!K47/10+0.5)*10) -> 0
B52: 噴霧ポンプ吐出量(L/分) | D52: =IF(ISERROR(作業シート!C48),"",作業シート!C48) -> 0 | E52: =IF(ISERROR(作業シート!D48),"",作業シート!D48) -> 0 | F52: =IF(ISERROR(作業シート!E48),"",作業シート!E48) -> 0 | G52: =IF(ISERROR(作業シート!F48),"",作業シート!F48) -> 0 | H52: =IF(ISERROR(作業シート!G48),"",作業シート!G48) -> 0 | I52: =IF(ISERROR(作業シート!H48),"",作業シート!H48) -> 0 | J52: =IF(ISERROR(作業シート!I48),"",作業シート!I48) -> 0 | K52: =IF(ISERROR(作業シート!J48),"",作業シート!J48) -> 0 | L52: =IF(ISERROR(作業シート!K48),"",作業シート!K48) -> 0
B53: 使用時風量 (H) | D53: =IF(ISERROR(作業シート!C49),"",作業シート!C49) -> 0 | E53: =IF(ISERROR(作業シート!D49),"",作業シート!D49) -> 0 | F53: =IF(ISERROR(作業シート!E49),"",作業シート!E49) -> 0 | G53: =IF(ISERROR(作業シート!F49),"",作業シート!F49) -> 0 | H53: =IF(ISERROR(作業シート!G49),"",作業シート!G49) -> 0 | I53: =IF(ISERROR(作業シート!H49),"",作業シート!H49) -> 0 | J53: =IF(ISERROR(作業シート!I49),"",作業シート!I49) -> 0 | K53: =IF(ISERROR(作業シート!J49),"",作業シート!J49) -> 0 | L53: =IF(ISERROR(作業シート!K49),"",作業シート!K49) -> 0
C54: (㎥/分) (L) | D54: =IF(ISERROR(作業シート!C50),"",作業シート!C50) -> 0 | E54: =IF(ISERROR(作業シート!D50),"",作業シート!D50) -> 0 | F54: =IF(ISERROR(作業シート!E50),"",作業シート!E50) -> 0 | G54: =IF(ISERROR(作業シート!F50),"",作業シート!F50) -> 0 | H54: =IF(ISERROR(作業シート!G50),"",作業シート!G50) -> 0 | I54: =IF(ISERROR(作業シート!H50),"",作業シート!H50) -> 0 | J54: =IF(ISERROR(作業シート!I50),"",作業シート!I50) -> 0 | K54: =IF(ISERROR(作業シート!J50),"",作業シート!J50) -> 0 | L54: =IF(ISERROR(作業シート!K50),"",作業シート!K50) -> 0
B55: 散布時間 | C55: 中-1（分） | D55: =IF(AND(D45>0,$C$55="低-1（分）"),$D$40/1000/作業シート!C6*60,IF(AND(D46>0,$C$55="中-1（分）"),$D$40/1000/作業シート!C7*60,IF(AND(D47>0,$C$55="低-2（分）"),$D$40/1000/作業シート!C8*60,IF(AND(D48>0,$C$55="中-2（分）"),$D$40/1000/作業シート!C9*60,IF(AND(D49>0,$C$55="低-3（分）"),$D$40/1000/作業シート!C10*60,IF(AND(D50>0,$C$55="中-3（分）"),$D$40/1000/作業シート!C11*60,0)))))) -> 0.0 | E55: =IF(AND(E45>0,$C$55="低-1（分）"),$D$40/1000/作業シート!D6*60,IF(AND(E46>0,$C$55="中-1（分）"),$D$40/1000/作業シート!D7*60,IF(AND(E47>0,$C$55="低-2（分）"),$D$40/1000/作業シート!D8*60,IF(AND(E48>0,$C$55="中-2（分）"),$D$40/1000/作業シート!D9*60,IF(AND(E49>0,$C$55="低-3（分）"),$D$40/1000/作業シート!D10*60,IF(AND(E50>0,$C$55="中-3（分）"),$D$40/1000/作業シート!D11*60,0)))))) -> 0.0 | F55: =IF(AND(F45>0,$C$55="低-1（分）"),$D$40/1000/作業シート!E6*60,IF(AND(F46>0,$C$55="中-1（分）"),$D$40/1000/作業シート!E7*60,IF(AND(F47>0,$C$55="低-2（分）"),$D$40/1000/作業シート!E8*60,IF(AND(F48>0,$C$55="中-2（分）"),$D$40/1000/作業シート!E9*60,IF(AND(F49>0,$C$55="低-3（分）"),$D$40/1000/作業シート!E10*60,IF(AND(F50>0,$C$55="中-3（分）"),$D$40/1000/作業シート!E11*60,0)))))) -> 0.0 | G55: =IF(AND(G45>0,$C$55="低-1（分）"),$D$40/1000/作業シート!F6*60,IF(AND(G46>0,$C$55="中-1（分）"),$D$40/1000/作業シート!F7*60,IF(AND(G47>0,$C$55="低-2（分）"),$D$40/1000/作業シート!F8*60,IF(AND(G48>0,$C$55="中-2（分）"),$D$40/1000/作業シート!F9*60,IF(AND(G49>0,$C$55="低-3（分）"),$D$40/1000/作業シート!F10*60,IF(AND(G50>0,$C$55="中-3（分）"),$D$40/1000/作業シート!F11*60,0)))))) -> 0.0 | H55: =IF(AND(H45>0,$C$55="低-1（分）"),$D$40/1000/作業シート!G6*60,IF(AND(H46>0,$C$55="中-1（分）"),$D$40/1000/作業シート!G7*60,IF(AND(H47>0,$C$55="低-2（分）"),$D$40/1000/作業シート!G8*60,IF(AND(H48>0,$C$55="中-2（分）"),$D$40/1000/作業シート!G9*60,IF(AND(H49>0,$C$55="低-3（分）"),$D$40/1000/作業シート!G10*60,IF(AND(H50>0,$C$55="中-3（分）"),$D$40/1000/作業シート!G11*60,0)))))) -> 0.0 | I55: =IF(AND(I45>0,$C$55="低-1（分）"),$D$40/1000/作業シート!H6*60,IF(AND(I46>0,$C$55="中-1（分）"),$D$40/1000/作業シート!H7*60,IF(AND(I47>0,$C$55="低-2（分）"),$D$40/1000/作業シート!H8*60,IF(AND(I48>0,$C$55="中-2（分）"),$D$40/1000/作業シート!H9*60,IF(AND(I49>0,$C$55="低-3（分）"),$D$40/1000/作業シート!H10*60,IF(AND(I50>0,$C$55="中-3（分）"),$D$40/1000/作業シート!H11*60,0)))))) -> 0.0 | J55: =IF(AND(J45>0,$C$55="低-1（分）"),$D$40/1000/作業シート!I6*60,IF(AND(J46>0,$C$55="中-1（分）"),$D$40/1000/作業シート!I7*60,IF(AND(J47>0,$C$55="低-2（分）"),$D$40/1000/作業シート!I8*60,IF(AND(J48>0,$C$55="中-2（分）"),$D$40/1000/作業シート!I9*60,IF(AND(J49>0,$C$55="低-3（分）"),$D$40/1000/作業シート!I10*60,IF(AND(J50>0,$C$55="中-3（分）"),$D$40/1000/作業シート!I11*60,0)))))) -> 0.0 | K55: =IF(AND(K45>0,$C$55="低-1（分）"),$D$40/1000/作業シート!J6*60,IF(AND(K46>0,$C$55="中-1（分）"),$D$40/1000/作業シート!J7*60,IF(AND(K47>0,$C$55="低-2（分）"),$D$40/1000/作業シート!J8*60,IF(AND(K48>0,$C$55="中-2（分）"),$D$40/1000/作業シート!J9*60,IF(AND(K49>0,$C$55="低-3（分）"),$D$40/1000/作業シート!J10*60,IF(AND(K50>0,$C$55="中-3（分）"),$D$40/1000/作業シート!J11*60,0)))))) -> 0.0 | L55: =IF(AND(L45>0,$C$55="低-1（分）"),$D$40/1000/作業シート!K6*60,IF(AND(L46>0,$C$55="中-1（分）"),$D$40/1000/作業シート!K7*60,IF(AND(L47>0,$C$55="低-2（分）"),$D$40/1000/作業シート!K8*60,IF(AND(L48>0,$C$55="中-2（分）"),$D$40/1000/作業シート!K9*60,IF(AND(L49>0,$C$55="低-3（分）"),$D$40/1000/作業シート!K10*60,IF(AND(L50>0,$C$55="中-3（分）"),$D$40/1000/作業シート!K11*60,0)))))) -> 0.0
B58: 噴霧ポンプ圧力の標準値と単位は、 | G58: ※防除効果の向上と安全作業のために、できるだけ遅い車速段の選択を強くお勧め致します。
B59: 1.5MPa＝15bar≒15kgf/cm2です。 | G59: ※入力したノズル個数と吐出量合計(L/分)が能力を超えていないか確認してください。
B60: 散布量表の数値が斜体文字の場合、そのエンジン回転数では噴霧ポンプの吐出量が噴霧ノズルの吐出量よりも小さく、設定した噴霧圧力まで上がらない場合があります。 | G60: ※噴霧ポンプ吐出量は、薬液タンクへ戻る余水分の約15%を引いて表示しています。
G61: ※計算上の判断により、取扱説明書と若干異なる場合があります。
G62: ※万一、この散布量計算を利用して生じたいかなる損失にも弊社は一切の責任を負いません。

Sheet 作業シート (hidden)
A3: 製 品 名 | B3: 3S- | C3: =■散布量計算シート!D7 -> 0 | N3: 製品名 | O3: 3S- | P3: =■散布量計算シート!D7 -> 0
A5: エンジン回転数(rpm) | C5: 1600 | D5: 1800 | E5: 2000 | F5: 2200 | G5: 2400 | H5: 2500 | I5: 2600 | J5: 2700 | K5: 2800 | N5: エンジン回転数(rpm) | P5: 1600 | Q5: 1800 | R5: 2000 | S5: 2200 | T5: 2400 | U5: 2500 | V5: 2600 | W5: 2700 | X5: 2800
A6: 車速 | B6: 低-1 | C6: =G6*0.64 -> 0.0 | D6: =G6*0.72 -> 0.0 | E6: =G6*0.8 -> 0.0 | F6: =G6*0.88 -> 0.0 | G6: =IF(ISERROR(VLOOKUP($C$3,車速表!$A:$AE,2,FALSE))=TRUE,0,VLOOKUP($C$3,車速表!$A:$AE,2,FALSE)) -> 0.0 | H6: =IF(ISERROR(VLOOKUP($C$3,車速表!$A:$AE,3,FALSE))=TRUE,0,VLOOKUP($C$3,車速表!$A:$AE,3,FALSE)) -> 0.0 | I6: =IF(ISERROR(VLOOKUP($C$3,車速表!$A:$AE,4,FALSE))=TRUE,0,VLOOKUP($C$3,車速表!$A:$AE,4,FALSE)) -> 0.0 | J6: =IF(ISERROR(VLOOKUP($C$3,車速表!$A:$AE,5,FALSE))=TRUE,0,VLOOKUP($C$3,車速表!$A:$AE,5,FALSE)) -> 0.0 | K6: =IF(ISERROR(VLOOKUP($C$3,車速表!$A:$AE,6,FALSE))=TRUE,0,VLOOKUP($C$3,車速表!$A:$AE,6,FALSE)) -> 0.0 | N6: 車速 (km/h) | O6: 低-1 | P6: =T6*0.64 -> 0.0 | Q6: =T6*0.72 -> 0.0 | R6: =T6*0.8 -> 0.0 | S6: =T6*0.88 -> 0.0 | T6: =IF(ISERROR(VLOOKUP($C$3,車速表!$A:$AE,2,FALSE))=TRUE,0,VLOOKUP($C$3,車速表!$A:$AE,2,FALSE)) -> 0.0 | U6: =IF(ISERROR(VLOOKUP($C$3,車速表!$A:$AE,3,FALSE))=TRUE,0,VLOOKUP($C$3,車速表!$A:$AE,3,FALSE)) -> 0.0 | V6: =IF(ISERROR(VLOOKUP($C$3,車速表!$A:$AE,4,FALSE))=TRUE,0,VLOOKUP($C$3,車速表!$A:$AE,4,FALSE)) -> 0.0 | W6: =IF(ISERROR(VLOOKUP($C$3,車速表!$A:$AE,5,FALSE))=TRUE,0,VLOOKUP($C$3,車速表!$A:$AE,5,FALSE)) -> 0.0 | X6: =IF(ISERROR(VLOOKUP($C$3,車速表!$A:$AE,6,FALSE))=TRUE,0,VLOOKUP($C$3,車速表!$A:$AE,6,FALSE)) -> 0.0
B7: 中-1 | C7: 0.0 | D7: 0.0 | E7: 0.0 | F7: 0.0 | G7: =IF(ISERROR(VLOOKUP($C$3,車速表!$A:$AE,7,FALSE))=TRUE,0,VLOOKUP($C$3,車速表!$A:$AE,7,FALSE)) -> 0.0 | H7: =IF(ISERROR(VLOOKUP($C$3,車速表!$A:$AE,8,FALSE))=TRUE,0,VLOOKUP($C$3,車速表!$A:$AE,8,FALSE)) -> 0.0 | I7: =IF(ISERROR(VLOOKUP($C$3,車速表!$A:$AE,9,FALSE))=TRUE,0,VLOOKUP($C$3,車速表!$A:$AE,9,FALSE)) -> 0.0 | J7: =IF(ISERROR(VLOOKUP($C$3,車速表!$A:$AE,10,FALSE))=TRUE,0,VLOOKUP($C$3,車速表!$A:$AE,10,FALSE)) -> 0.0 | K7: =IF(ISERROR(VLOOKUP($C$3,車速表!$A:$AE,11,FALSE))=TRUE,0,VLOOKUP($C$3,車速表!$A:$AE,11,FALSE)) -> 0.0 | O7: 中-1 | P7: 0.0 | Q7: 0.0 | R7: 0.0 | S7: 0.0 | T7: =IF(ISERROR(VLOOKUP($C$3,車速表!$A:$AE,7,FALSE))=TRUE,0,VLOOKUP($C$3,車速表!$A:$AE,7,FALSE)) -> 0.0 | U7: =IF(ISERROR(VLOOKUP($C$3,車速表!$A:$AE,8,FALSE))=TRUE,0,VLOOKUP($C$3,車速表!$A:$AE,8,FALSE)) -> 0.0 | V7: =IF(ISERROR(VLOOKUP($C$3,車速表!$A:$AE,9,FALSE))=TRUE,0,VLOOKUP($C$3,車速表!$A:$AE,9,FALSE)) -> 0.0 | W7: =IF(ISERROR(VLOOKUP($C$3,車速表!$A:$AE,10,FALSE))=TRUE,0,VLOOKUP($C$3,車速表!$A:$AE,10,FALSE)) -> 0.0 | X7: =IF(ISERROR(VLOOKUP($C$3,車速表!$A:$AE,11,FALSE))=TRUE,0,VLOOKUP($C$3,車速表!$A:$AE,11,FALSE)) -> 0.0
B8: 低-2 | C8: 0.0 | D8: 0.0 | E8: 0.0 | F8: 0.0 | G8: =IF(ISERROR(VLOOKUP($C$3,車速表!$A:$AE,12,FALSE))=TRUE,0,VLOOKUP($C$3,車速表!$A:$AE,12,FALSE)) -> 0.0 | H8: =IF(ISERROR(VLOOKUP($C$3,車速表!$A:$AE,13,FALSE))=TRUE,0,VLOOKUP($C$3,車速表!$A:$AE,13,FALSE)) -> 0.0 | I8: =IF(ISERROR(VLOOKUP($C$3,車速表!$A:$AE,14,FALSE))=TRUE,0,VLOOKUP($C$3,車速表!$A:$AE,14,FALSE)) -> 0.0 | J8: =IF(ISERROR(VLOOKUP($C$3,車速表!$A:$AE,15,FALSE))=TRUE,0,VLOOKUP($C$3,車速表!$A:$AE,15,FALSE)) -> 0.0 | K8: =IF(ISERROR(VLOOKUP($C$3,車速表!$A:$AE,16,FALSE))=TRUE,0,VLOOKUP($C$3,車速表!$A:$AE,16,FALSE)) -> 0.0 | O8: 低-2 | P8: 0.0 | Q8: 0.0 | R8: 0.0 | S8: 0.0 | T8: =IF(ISERROR(VLOOKUP($C$3,車速表!$A:$AE,12,FALSE))=TRUE,0,VLOOKUP($C$3,車速表!$A:$AE,12,FALSE)) -> 0.0 | U8: =IF(ISERROR(VLOOKUP($C$3,車速表!$A:$AE,13,FALSE))=TRUE,0,VLOOKUP($C$3,車速表!$A:$AE,13,FALSE)) -> 0.0 | V8: =IF(ISERROR(VLOOKUP($C$3,車速表!$A:$AE,14,FALSE))=TRUE,0,VLOOKUP($C$3,車速表!$A:$AE,14,FALSE)) -> 0.0 | W8: =IF(ISERROR(VLOOKUP($C$3,車速表!$A:$AE,15,FALSE))=TRUE,0,VLOOKUP($C$3,車速表!$A:$AE,15,FALSE)) -> 0.0 | X8: =IF(ISERROR(VLOOKUP($C$3,車速表!$A:$AE,16,FALSE))=TRUE,0,VLOOKUP($C$3,車速表!$A:$AE,16,FALSE)) -> 0.0
B9: 中-2 | C9: 0.0 | D9: 0.0 | E9: 0.0 | F9: 0.0 | G9: =IF(ISERROR(VLOOKUP($C$3,車速表!$A:$AE,17,FALSE))=TRUE,0,VLOOKUP($C$3,車速表!$A:$AE,17,FALSE)) -> 0.0 | H9: =IF(ISERROR(VLOOKUP($C$3,車速表!$A:$AE,18,FALSE))=TRUE,0,VLOOKUP($C$3,車速表!$A:$AE,18,FALSE)) -> 0.0 | I9: =IF(ISERROR(VLOOKUP($C$3,車速表!$A:$AE,19,FALSE))=TRUE,0,VLOOKUP($C$3,車速表!$A:$AE,19,FALSE)) -> 0.0 | J9: =IF(ISERROR(VLOOKUP($C$3,車速表!$A:$AE,20,FALSE))=TRUE,0,VLOOKUP($C$3,車速表!$A:$AE,20,FALSE)) -> 0.0 | K9: =IF(ISERROR(VLOOKUP($C$3,車速表!$A:$AE,21,FALSE))=TRUE,0,VLOOKUP($C$3,車速表!$A:$AE,21,FALSE)) -> 0.0 | O9: 中-2 | P9: 0.0 | Q9: 0.0 | R9: 0.0 | S9: 0.0 | T9: =IF(ISERROR(VLOOKUP($C$3,車速表!$A:$AE,17,FALSE))=TRUE,0,VLOOKUP($C$3,車速表!$A:$AE,17,FALSE)) -> 0.0 | U9: =IF(ISERROR(VLOOKUP($C$3,車速表!$A:$AE,18,FALSE))=TRUE,0,VLOOKUP($C$3,車速表!$A:$AE,18,FALSE)) -> 0.0 | V9: =IF(ISERROR(VLOOKUP($C$3,車速表!$A:$AE,19,FALSE))=TRUE,0,VLOOKUP($C$3,車速表!$A:$AE,19,FALSE)) -> 0.0 | W9: =IF(ISERROR(VLOOKUP($C$3,車速表!$A:$AE,20,FALSE))=TRUE,0,VLOOKUP($C$3,車速表!$A:$AE,20,FALSE)) -> 0.0 | X9: =IF(ISERROR(VLOOKUP($C$3,車速表!$A:$AE,21,FALSE))=TRUE,0,VLOOKUP($C$3,車速表!$A:$AE,21,FALSE)) -> 0.0
B10: 低-3 | C10: 0.0 | D10: 0.0 | E10: 0.0 | F10: 0.0 | G10: =IF(ISERROR(VLOOKUP($C$3,車速表!$A:$AE,22,FALSE))=TRUE,0,VLOOKUP($C$3,車速表!$A:$AE,22,FALSE)) -> 0.0 | H10: =IF(ISERROR(VLOOKUP($C$3,車速表!$A:$AE,23,FALSE))=TRUE,0,VLOOKUP($C$3,車速表!$A:$AE,23,FALSE)) -> 0.0 | I10: =IF(ISERROR(VLOOKUP($C$3,車速表!$A:$AE,24,FALSE))=TRUE,0,VLOOKUP($C$3,車速表!$A:$AE,24,FALSE)) -> 0.0 | J10: =IF(ISERROR(VLOOKUP($C$3,車速表!$A:$AE,25,FALSE))=TRUE,0,VLOOKUP($C$3,車速表!$A:$AE,25,FALSE)) -> 0.0 | K10: =IF(ISERROR(VLOOKUP($C$3,車速表!$A:$AE,26,FALSE))=TRUE,0,VLOOKUP($C$3,車速表!$A:$AE,26,FALSE)) -> 0.0 | N10: Travel speed | O10: 低-3 | P10: 0.0 | Q10: 0.0 | R10: 0.0 | S10: 0.0 | T10: =IF(ISERROR(VLOOKUP($C$3,車速表!$A:$AE,22,FALSE))=TRUE,0,VLOOKUP($C$3,車速表!$A:$AE,22,FALSE)) -> 0.0 | U10: =IF(ISERROR(VLOOKUP($C$3,車速表!$A:$AE,23,FALSE))=TRUE,0,VLOOKUP($C$3,車速表!$A:$AE,23,FALSE)) -> 0.0 | V10: =IF(ISERROR(VLOOKUP($C$3,車速表!$A:$AE,24,FALSE))=TRUE,0,VLOOKUP($C$3,車速表!$A:$AE,24,FALSE)) -> 0.0 | W10: =IF(ISERROR(VLOOKUP($C$3,車速表!$A:$AE,25,FALSE))=TRUE,0,VLOOKUP($C$3,車速表!$A:$AE,25,FALSE)) -> 0.0 | X10: =IF(ISERROR(VLOOKUP($C$3,車速表!$A:$AE,26,FALSE))=TRUE,0,VLOOKUP($C$3,車速表!$A:$AE,26,FALSE)) -> 0.0
B11: 中-3 | C11: 0.0 | D11: 0.0 | E11: 0.0 | F11: 0.0 | G11: =IF(ISERROR(VLOOKUP($C$3,車速表!$A:$AE,27,FALSE))=TRUE,0,VLOOKUP($C$3,車速表!$A:$AE,27,FALSE)) -> 0.0 | H11: =IF(ISERROR(VLOOKUP($C$3,車速表!$A:$AE,28,FALSE))=TRUE,0,VLOOKUP($C$3,車速表!$A:$AE,28,FALSE)) -> 0.0 | I11: =IF(ISERROR(VLOOKUP($C$3,車速表!$A:$AE,29,FALSE))=TRUE,0,VLOOKUP($C$3,車速表!$A:$AE,29,FALSE)) -> 0.0 | J11: =IF(ISERROR(VLOOKUP($C$3,車速表!$A:$AE,30,FALSE))=TRUE,0,VLOOKUP($C$3,車速表!$A:$AE,30,FALSE)) -> 0.0 | K11: =IF(ISERROR(VLOOKUP($C$3,車速表!$A:$AE,31,FALSE))=TRUE,0,VLOOKUP($C$3,車速表!$A:$AE,31,FALSE)) -> 0.0 | O11: 中-3 | P11: 0.0 | Q11: 0.0 | R11: 0.0 | S11: 0.0 | T11: =IF(ISERROR(VLOOKUP($C$3,車速表!$A:$AE,27,FALSE))=TRUE,0,VLOOKUP($C$3,車速表!$A:$AE,27,FALSE)) -> 0.0 | U11: =IF(ISERROR(VLOOKUP($C$3,車速表!$A:$AE,28,FALSE))=TRUE,0,VLOOKUP($C$3,車速表!$A:$AE,28,FALSE)) -> 0.0 | V11: =IF(ISERROR(VLOOKUP($C$3,車速表!$A:$AE,29,FALSE))=TRUE,0,VLOOKUP($C$3,車速表!$A:$AE,29,FALSE)) -> 0.0 | W11: =IF(ISERROR(VLOOKUP($C$3,車速表!$A:$AE,30,FALSE))=TRUE,0,VLOOKUP($C$3,車速表!$A:$AE,30,FALSE)) -> 0.0 | X11: =IF(ISERROR(VLOOKUP($C$3,車速表!$A:$AE,31,FALSE))=TRUE,0,VLOOKUP($C$3,車速表!$A:$AE,31,FALSE)) -> 0.0
A14: 作業条件①
A16: 名 称 | C16: 個数 | D16: 吐出量1 | E16: 吐出量1.5 | F16: 吐出量2 | G16: 吐出量計 | I16: 最大吐出量 | K16: ノズル個数
A17: =■散布量計算シート!H15 -> 0 | C17: =■散布量計算シート!I15 -> 0 | D17: =IF(ISERROR(VLOOKUP($A17,ノズル吐出量,2,FALSE))=TRUE,0,VLOOKUP($A17,ノズル吐出量,2,FALSE)) -> 0 | E17: =IF(ISERROR(VLOOKUP($A17,ノズル吐出量,3,FALSE))=TRUE,0,VLOOKUP($A17,ノズル吐出量,3,FALSE)) -> 0.0 | F17: =IF(ISERROR(VLOOKUP($A17,ノズル吐出量,4,FALSE))=TRUE,0,VLOOKUP($A17,ノズル吐出量,4,FALSE)) -> 0 | G17: =IF($B$20=1,$C17*D17,IF($B$20=1.5,$C17*E17,IF(B$20=2,$C17*F17,0))) -> 0.0 | I17: =IF(C3<>0,VLOOKUP(C3,車速表!A:AG,33,FALSE),0) -> 0 | J17: L/分 | K17: =IF(C3<>0,VLOOKUP(C3,車速表!A:AH,34,FALSE),0) -> 0
A18: =■散布量計算シート!H16 -> 0 | C18: =■散布量計算シート!I16 -> 0 | D18: =IF(ISERROR(VLOOKUP($A18,ノズル吐出量,2,FALSE))=TRUE,0,VLOOKUP($A18,ノズル吐出量,2,FALSE)) -> 0 | E18: =IF(ISERROR(VLOOKUP($A18,ノズル吐出量,3,FALSE))=TRUE,0,VLOOKUP($A18,ノズル吐出量,3,FALSE)) -> 0.0 | F18: =IF(ISERROR(VLOOKUP($A18,ノズル吐出量,4,FALSE))=TRUE,0,VLOOKUP($A18,ノズル吐出量,4,FALSE)) -> 0 | G18: =IF($B$20=1,$C18*D18,IF($B$20=1.5,$C18*E18,$C18*F18)) -> 0.0 | K18: 風量(H/L)
A19: =■散布量計算シート!H17 -> 0 | C19: =■散布量計算シート!I17 -> 0 | D19: =IF(ISERROR(VLOOKUP($A19,ノズル吐出量,2,FALSE))=TRUE,0,VLOOKUP($A19,ノズル吐出量,2,FALSE)) -> 0 | E19: =IF(ISERROR(VLOOKUP($A19,ノズル吐出量,3,FALSE))=TRUE,0,VLOOKUP($A19,ノズル吐出量,3,FALSE)) -> 0.0 | F19: =IF(ISERROR(VLOOKUP($A19,ノズル吐出量,4,FALSE))=TRUE,0,VLOOKUP($A19,ノズル吐出量,4,FALSE)) -> 0 | G19: =IF($B$20=1,$C19*D19,IF($B$20=1.5,$C19*E19,$C19*F19)) -> 0.0 | I19: 走行距離 | K19: =IF(C3<>0,VLOOKUP(C3,車速表!A:AJ,35,FALSE),0) -> 0
A20: 噴霧ポンプ圧力 | B20: =■散布量計算シート!D18 -> 0 | C20: =SUM(C17:C19) -> 0 | F20: 計 | G20: =SUM(G17:G19) -> 0.0 | H20: (L/分) | I20: =■散布量計算シート!$D$17 ->  | J20: m | K20: =IF(C3<>0,VLOOKUP(C3,車速表!A:AJ,36,FALSE),0) -> 0 | N20: ■計算条件-1 | P20: =+■散布量計算シート!D14 -> 0 | U20: 散布幅（列間隔） | W20: =+■散布量計算シート!D16 -> 0
A22: エンジン回転数(rpm) | C22: 1600 | D22: 1800 | E22: 2000 | F22: 2200 | G22: 2400 | H22: 2500 | I22: 2600 | J22: 2700 | K22: 2800 | N22: エンジン回転数(rpm) | P22: 1600 | Q22: 1800 | R22: 2000 | S22: 2200 | T22: 2400 | U22: 2500 | V22: 2600 | W22: 2700 | X22: 2800
A23: 散布量 | B23: 低-1 | C23: =IF(AND(C6>0,$I$20>0,$G$20>0),$G$20*P23,0) -> 0 | D23: 0 | E23: 0 | F23: 0 | G23: 0 | H23: 0 | I23: 0 | J23: 0 | K23: 0 | N23: 散 布 時 間 （分/10a） | O23: 低-1 | P23: =IF(AND(C6>0,$I$20>0,$G$20>0),$I$20*0.06/C6,0) -> 0.0 | Q23: 0.0 | R23: 0.0 | S23: 0.0 | T23: 0.0 | U23: 0.0 | V23: 0.0 | W23: 0.0 | X23: 0.0
B24: 中-1 | C24: =IF(AND(C7>0,$I$20>0,$G$20>0),$G$20*P24,0) -> 0 | D24: 0 | E24: 0 | F24: 0 | G24: 0 | H24: 0 | I24: 0 | J24: 0 | K24: =IF(AND(K7>0,$I$20>0,$G$20>0),$G$20*X24,0) -> 0 | O24: 中-1 | P24: =IF(AND(C7>0,$I$20>0,$G$20>0),$I$20*0.06/C7,0) -> 0.0 | Q24: 0.0 | R24: 0.0 | S24: 0.0 | T24: 0.0 | U24: 0.0 | V24: 0.0 | W24: 0.0 | X24: =IF(AND(K7>0,$I$20>0,$G$20>0),$I$20*0.06/K7,0) -> 0.0
B25: 低-2 | C25: 0 | D25: 0 | E25: 0 | F25: 0 | G25: 0 | H25: 0 | I25: 0 | J25: 0 | K25: 0 | O25: 低-2 | P25: 0.0 | Q25: 0.0 | R25: 0.0 | S25: 0.0 | T25: 0.0 | U25: 0.0 | V25: 0.0 | W25: 0.0 | X25: 0.0
B26: 中-2 | C26: 0 | D26: 0 | E26: 0 | F26: 0 | G26: 0 | H26: 0 | I26: 0 | J26: 0 | K26: 0 | O26: 中-2 | P26: 0.0 | Q26: 0.0 | R26: 0.0 | S26: 0.0 | T26: 0.0 | U26: 0.0 | V26: 0.0 | W26: 0.0 | X26: 0.0
B27: 低-3 | C27: 0 | D27: 0 | E27: 0 | F27: 0 | G27: 0 | H27: 0 | I27: 0 | J27: 0 | K27: 0 | N27: Travel time (min/10a) | O27: 低-3 | P27: 0.0 | Q27: 0.0 | R27: 0.0 | S27: 0.0 | T27: 0.0 | U27: 0.0 | V27: 0.0 | W27: 0.0 | X27: 0.0
B28: 中-3 | C28: 0 | D28: 0 | E28: 0 | F28: 0 | G28: 0 | H28: 0 | I28: 0 | J28: 0 | K28: 0 | O28: 中-3 | P28: 0.0 | Q28: 0.0 | R28: 0.0 | S28: 0.0 | T28: 0.0 | U28: 0.0 | V28: 0.0 | W28: 0.0 | X28: 0.0
A29: 噴霧ポンプ吐出量(L/m) | C29: =D29*1600/1800 -> 0 | D29: =E29*1800/2000 -> 0 | E29: =F29*2000/2200 -> 0 | F29: =G29*2200/2400 -> 0 | G29: =IF(H23=0,IF(G23>0,$I$17*0.85,0),H29*2400/2500) -> 0 | H29: =IF(I23=0,IF(H23>0,$I$17*0.85,0),I29*2500/2600) -> 0 | I29: =IF(J23=0,IF(I23>0,$I$17*0.85,0),J29*2600/2700) -> 0 | J29: =IF(K23=0,IF(J23>0,$I$17*0.85,0),K29*2700/2800) -> 0 | K29: =IF(K23>0,$I$17*0.85,0) -> 0
B30: 風量 Ｈ側 | C30: =D30*1600/1800 -> 0 | D30: =E30*1800/2000 -> 0 | E30: =F30*2000/2200 -> 0 | F30: =G30*2200/2400 -> 0 | G30: =IF(H23=0,IF(G23>0,K19,0),H30*2400/2500) -> 0 | H30: =IF(I23=0,IF(H23>0,K19,0),I30*2500/2600) -> 0 | I30: =IF(J23=0,IF(I23>0,K19,0),J30*2600/2700) -> 0 | J30: =IF(K23=0,IF(J23>0,K19,0),K30*2700/2800) -> 0 | K30: =IF(K23>0,K19,0) -> 0
B31: 風量 Ｌ側 | C31: =D31*1600/1800 -> 0 | D31: =E31*1800/2000 -> 0 | E31: =F31*2000/2200 -> 0 | F31: =G31*2200/2400 -> 0 | G31: =IF(H23=0,IF(G23>0,K20,0),H31*2400/2500) -> 0 | H31: =IF(I23=0,IF(H23>0,K20,0),I31*2500/2600) -> 0 | I31: =IF(J23=0,IF(I23>0,K20,0),J31*2600/2700) -> 0 | J31: =IF(K23=0,IF(J23>0,K20,0),K31*2700/2800) -> 0 | K31: =IF(K23>0,K20,0) -> 0
A33: 作業条件②
A35: 名 称 | C35: 個数 | D35: 吐出量1 | E35: 吐出量1.5 | F35: 吐出量2 | G35: 吐出量計 | I35: 最大吐出量 | K35: ノズル個数
A36: =■散布量計算シート!H38 -> 0 | C36: =■散布量計算シート!I38 -> 0 | D36: =IF(ISERROR(VLOOKUP($A36,ノズル吐出量,2,FALSE))=TRUE,0,VLOOKUP($A36,ノズル吐出量,2,FALSE)) -> 0 | E36: =IF(ISERROR(VLOOKUP($A36,ノズル吐出量,3,FALSE))=TRUE,0,VLOOKUP($A36,ノズル吐出量,3,FALSE)) -> 0.0 | F36: =IF(ISERROR(VLOOKUP($A36,ノズル吐出量,4,FALSE))=TRUE,0,VLOOKUP($A36,ノズル吐出量,4,FALSE)) -> 0 | G36: =IF($B$39=1,$C36*D36,IF($B$39=1.5,$C36*E36,IF(B$39=2,$C36*F36,0))) -> 0.0 | I36: =IF(C3<>0,VLOOKUP(C3,車速表!A:AG,33,FALSE),0) -> 0 | J36: L/分 | K36: =IF(C3<>0,VLOOKUP(C3,車速表!A:AH,34,FALSE),0) -> 0
A37: =■散布量計算シート!H39 -> 0 | C37: =■散布量計算シート!I39 -> 0 | D37: =IF(ISERROR(VLOOKUP($A37,ノズル吐出量,2,FALSE))=TRUE,0,VLOOKUP($A37,ノズル吐出量,2,FALSE)) -> 0 | E37: =IF(ISERROR(VLOOKUP($A37,ノズル吐出量,3,FALSE))=TRUE,0,VLOOKUP($A37,ノズル吐出量,3,FALSE)) -> 0.0 | F37: =IF(ISERROR(VLOOKUP($A37,ノズル吐出量,4,FALSE))=TRUE,0,VLOOKUP($A37,ノズル吐出量,4,FALSE)) -> 0 | G37: =IF($B$39=1,$C37*D37,IF($B$39=1.5,$C37*E37,$C37*F37)) -> 0.0 | K37: 風量(H/L)
A38: =■散布量計算シート!H40 -> 0 | C38: =■散布量計算シート!I40 -> 0 | D38: =IF(ISERROR(VLOOKUP($A38,ノズル吐出量,2,FALSE))=TRUE,0,VLOOKUP($A38,ノズル吐出量,2,FALSE)) -> 0 | E38: =IF(ISERROR(VLOOKUP($A38,ノズル吐出量,3,FALSE))=TRUE,0,VLOOKUP($A38,ノズル吐出量,3,FALSE)) -> 0.0 | F38: =IF(ISERROR(VLOOKUP($A38,ノズル吐出量,4,FALSE))=TRUE,0,VLOOKUP($A38,ノズル吐出量,4,FALSE)) -> 0 | G38: =IF($B$39=1,$C38*D38,IF($B$39=1.5,$C38*E38,$C38*F38)) -> 0.0 | I38: 走行距離 | K38: =IF(C3<>0,VLOOKUP(C3,車速表!A:AJ,35,FALSE),0) -> 0
A39: 噴霧ポンプ圧力 | B39: =■散布量計算シート!D41 -> 0.0 | C39: =SUM(C36:C38) -> 0 | F39: 計 | G39: =SUM(G36:G38) -> 0.0 | H39: (L/分) | I39: =■散布量計算シート!$D$40 ->  | J39: m | K39: =IF(C3<>0,VLOOKUP(C3,車速表!A:AJ,36,FALSE),0) -> 0 | N39: ■計算条件-2 | P39: =+■散布量計算シート!D37 -> 0 | U39: 散布幅（列間隔） | W39: =+■散布量計算シート!D39 -> 0
A41: エンジン回転数(rpm) | C41: 1600 | D41: 1800 | E41: 2000 | F41: 2200 | G41: 2400 | H41: 2500 | I41: 2600 | J41: 2700 | K41: 2800 | N41: エンジン回転数(rpm) | P41: 1600 | Q41: 1800 | R41: 2000 | S41: 2200 | T41: 2400 | U41: 2500 | V41: 2600 | W41: 2700 | X41: 2800
A42: 散布量 | B42: 低-1 | C42: =IF(AND(C6>0,$I$39>0,$G$39>0),$G$39*P42,0) -> 0 | D42: 0 | E42: 0 | F42: 0 | G42: 0 | H42: 0 | I42: 0 | J42: 0 | K42: 0 | N42: 散 布 時 間 （分/10a） | O42: 低-1 | P42: =IF(AND(C6>0,$I$39>0,$G$39>0),$I$39*0.06/C6,0) -> 0.0 | Q42: 0.0 | R42: 0.0 | S42: 0.0 | T42: 0.0 | U42: 0.0 | V42: 0.0 | W42: 0.0 | X42: 0.0
B43: 中-1 | C43: 0 | D43: 0 | E43: 0 | F43: 0 | G43: 0 | H43: 0 | I43: 0 | J43: 0 | K43: 0 | O43: 中-1 | P43: =IF(AND(C7>0,$I$39>0,$G$39>0),$I$39*0.06/C7,0) -> 0.0 | Q43: 0.0 | R43: 0.0 | S43: 0.0 | T43: 0.0 | U43: 0.0 | V43: 0.0 | W43: 0.0 | X43: =IF(AND(K7>0,$I$39>0,$G$39>0),$I$39*0.06/K7,0) -> 0.0
B44: 低-2 | C44: 0 | D44: 0 | E44: 0 | F44: 0 | G44: 0 | H44: 0 | I44: 0 | J44: 0 | K44: 0 | O44: 低-2 | P44: 0.0 | Q44: 0.0 | R44: 0.0 | S44: 0.0 | T44: 0.0 | U44: 0.0 | V44: 0.0 | W44: 0.0 | X44: 0.0
B45: 中-2 | C45: 0 | D45: 0 | E45: 0 | F45: 0 | G45: 0 | H45: 0 | I45: 0 | J45: 0 | K45: 0 | O45: 中-2 | P45: 0.0 | Q45: 0.0 | R45: 0.0 | S45: 0.0 | T45: 0.0 | U45: 0.0 | V45: 0.0 | W45: 0.0 | X45: 0.0
B46: 低-3 | C46: 0 | D46: 0 | E46: 0 | F46: 0 | G46: 0 | H46: 0 | I46: 0 | J46: 0 | K46: 0 | N46: Travel time (min/10a) | O46: 低-3 | P46: 0.0 | Q46: 0.0 | R46: 0.0 | S46: 0.0 | T46: 0.0 | U46: 0.0 | V46: 0.0 | W46: 0.0 | X46: 0.0
B47: 中-3 | C47: 0 | D47: 0 | E47: 0 | F47: 0 | G47: 0 | H47: 0 | I47: 0 | J47: 0 | K47: 0 | O47: 中-3 | P47: 0.0 | Q47: 0.0 | R47: 0.0 | S47: 0.0 | T47: 0.0 | U47: 0.0 | V47: 0.0 | W47: 0.0 | X47: 0.0
A48: 噴霧ポンプ吐出量(L/m) | C48: =D48*1600/1800 -> 0 | D48: =E48*1800/2000 -> 0 | E48: =F48*2000/2200 -> 0 | F48: =G48*2200/2400 -> 0 | G48: =IF(H42=0,IF(G42>0,$I$36*0.85,0),H48*2400/2500) -> 0 | H48: =IF(I42=0,IF(H42>0,$I$36*0.85,0),I48*2500/2600) -> 0 | I48: =IF(J42=0,IF(I42>0,$I$36*0.85,0),J48*2600/2700) -> 0 | J48: =IF(K42=0,IF(J42>0,$I$36*0.85,0),K48*2700/2800) -> 0 | K48: =IF(K42>0,$I$36*0.85,0) -> 0
B49: 風量 Ｈ側 | C49: =D49*1600/1800 -> 0 | D49: =E49*1800/2000 -> 0 | E49: =F49*2000/2200 -> 0 | F49: =G49*2200/2400 -> 0 | G49: =IF(H42=0,IF(G42>0,K38,0),H49*2400/2500) -> 0 | H49: =IF(I42=0,IF(H42>0,K38,0),I49*2500/2600) -> 0 | I49: =IF(J42=0,IF(I42>0,K38,0),J49*2600/2700) -> 0 | J49: =IF(K42=0,IF(J42>0,K38,0),K49*2700/2800) -> 0 | K49: =IF(K42>0,K38,0) -> 0
B50: 風量 Ｌ側 | C50: =D50*1600/1800 -> 0 | D50: =E50*1800/2000 -> 0 | E50: =F50*2000/2200 -> 0 | F50: =G50*2200/2400 -> 0 | G50: =IF(H42=0,IF(G42>0,K39,0),H50*2400/2500) -> 0 | H50: =IF(I42=0,IF(H42>0,K39,0),I50*2500/2600) -> 0 | I50: =IF(J42=0,IF(I42>0,K39,0),J50*2600/2700) -> 0 | J50: =IF(K42=0,IF(J42>0,K39,0),K50*2700/2800) -> 0 | K50: =IF(K42>0,K39,0) -> 0

Sheet 車速表
A1: 定格エンジン回転数/車速 | B1: 低－1 | G1: 中－1 | L1: 低－2 | Q1: 中－2 | V1: 低－3 | AA1: 中－3 | AG1: 噴霧ポンプ | AH1: ノズル | AI1: 使用時風量 (㎥）
A2: 製 品 名 | B2: 2400 | C2: 2500 | D2: 2600 | E2: 2700 | F2: 2800 | G2: 2400 | H2: 2500 | I2: 2600 | J2: 2700 | K2: 2800 | L2: 2400 | M2: 2500 | N2: 2600 | O2: 2700 | P2: 2800 | Q2: 2400 | R2: 2500 | S2: 2600 | T2: 2700 | U2: 2800 | V2: 2400 | W2: 2500 | X2: 2600 | Y2: 2700 | Z2: 2800 | AA2: 2400 | AB2: 2500 | AC2: 2600 | AD2: 2700 | AE2: 2800 | AG2: 最大吐出量 | AH2: 最大個数 | AI2: H側 | AJ2: L側
A3: V512R(V512-Ⅱ) | B3: =C3*0.96 -> 1.5 | C3: 1.6 | D3: =E3*0.96 -> 0.0 | E3: =F3*0.96 -> 0.0 | G3: =H3*0.96 -> 0.0 | H3: 0.0 | I3: =J3*0.96 -> 0.0 | J3: =K3*0.96 -> 0.0 | L3: =M3*0.96 -> 2.1 | M3: 2.2 | N3: =O3*0.96 -> 0.0 | O3: =P3*0.96 -> 0.0 | Q3: =R3*0.96 -> 0.0 | R3: 0.0 | S3: =T3*0.96 -> 0.0 | T3: =U3*0.96 -> 0.0 | V3: =W3*0.96 -> 3.2 | W3: 3.3 | X3: =Y3*0.96 -> 0.0 | Y3: =Z3*0.96 -> 0.0 | AA3: =AB3*0.96 -> 0.0 | AB3: 0.0 | AC3: =AD3*0.96 -> 0.0 | AD3: =AE3*0.96 -> 0.0 | AG3: 66.0 | AH3: 14 | AI3: 320 | AJ3: 0
A4: V522R(V522-Ⅱ) | B4: =C4*0.96 -> 1.4 | C4: 1.5 | D4: =E4*0.96 -> 0.0 | E4: =F4*0.96 -> 0.0 | G4: =H4*0.96 -> 0.0 | H4: 0.0 | I4: =J4*0.96 -> 0.0 | J4: =K4*0.96 -> 0.0 | L4: =M4*0.96 -> 2.0 | M4: 2.1 | N4: =O4*0.96 -> 0.0 | O4: =P4*0.96 -> 0.0 | Q4: =R4*0.96 -> 0.0 | R4: 0.0 | S4: =T4*0.96 -> 0.0 | T4: =U4*0.96 -> 0.0 | V4: =W4*0.96 -> 3.0 | W4: 3.1 | X4: =Y4*0.96 -> 0.0 | Y4: =Z4*0.96 -> 0.0 | AA4: =AB4*0.96 -> 0.0 | AB4: 0.0 | AC4: =AD4*0.96 -> 0.0 | AD4: =AE4*0.96 -> 0.0 | AG4: 85.0 | AH4: 16 | AI4: 520 | AJ4: 0
A5: VE642R(VE642-Ⅱ)/CE643H(R)/FS643H(R)/VE642C/CE642HC/FS642HC | B5: =C5*0.96 -> 1.3 | C5: =D5*0.96 -> 1.3 | D5: =E5*0.96 -> 1.4 | E5: =F5*0.96 -> 1.4 | F5: 1.5 | G5: =H5*0.96 -> 1.4 | H5: =I5*0.96 -> 1.5 | I5: =J5*0.96 -> 1.6 | J5: =K5*0.96 -> 1.6 | K5: 1.7 | L5: =M5*0.96 -> 1.8 | M5: =N5*0.96 -> 1.9 | N5: =O5*0.96 -> 1.9 | O5: =P5*0.96 -> 2.0 | P5: 2.1 | Q5: =R5*0.96 -> 2.1 | R5: =S5*0.96 -> 2.2 | S5: =T5*0.96 -> 2.3 | T5: =U5*0.96 -> 2.4 | U5: 2.5 | V5: =W5*0.96 -> 2.6 | W5: =X5*0.96 -> 2.7 | X5: =Y5*0.96 -> 2.9 | Y5: =Z5*0.96 -> 3.0 | Z5: 3.1 | AA5: =AB5*0.96 -> 3.1 | AB5: =AC5*0.96 -> 3.2 | AC5: =AD5*0.96 -> 3.3 | AD5: =AE5*0.96 -> 3.5 | AE5: 3.6 | AG5: 95.0 | AH5: 18 | AI5: 727 | AJ5: 517
A6: VE1052R(VE1052-Ⅱ)/VE1052C | B6: 1.4 | G6: 1.7 | L6: 2.1 | Q6: 2.5 | V6: 3.1 | AA6: 3.6 | AG6: 112.0 | AH6: 20 | AI6: 795 | AJ6: 527
A7: CE1053H(R)/FSE1053H(R)/CE1052HC/FSE1052HC | B7: 1.5 | G7: 1.8 | L7: 2.2 | Q7: 2.6 | V7: 3.2 | AA7: 3.8 | AG7: 112.0 | AH7: 20 | AI7: 795 | AJ7: 527
A8: C1050HS/JA1051HC | B8: =C8*0.96 -> 1.3 | C8: =D8*0.96 -> 1.3 | D8: 1.4 | E8: =F8*0.96 -> 0.0 | G8: =H8*0.96 -> 1.5 | H8: =I8*0.96 -> 1.5 | I8: 1.6 | J8: =K8*0.96 -> 0.0 | L8: =M8*0.96 -> 1.8 | M8: =N8*0.96 -> 1.9 | N8: 2.0 | O8: =P8*0.96 -> 0.0 | Q8: =R8*0.96 -> 2.1 | R8: =S8*0.96 -> 2.2 | S8: 2.3 | T8: =U8*0.96 -> 0.0 | V8: =W8*0.96 -> 2.8 | W8: =X8*0.96 -> 2.9 | X8: 3.0 | Y8: =Z8*0.96 -> 0.0 | AA8: =AB8*0.96 -> 3.1 | AB8: =AC8*0.96 -> 3.3 | AC8: 3.4 | AD8: =AE8*0.96 -> 0.0 | AG8: 116.0 | AH8: 20 | AI8: 800 | AJ8: 570
A9: VE1050C/CE1051HC/FSE1051HC | B9: =C9*0.96 -> 1.4 | C9: =D9*0.96 -> 1.4 | D9: 1.5 | G9: =H9*0.96 -> 1.6 | H9: =I9*0.96 -> 1.6 | I9: 1.7 | L9: =M9*0.96 -> 1.9 | M9: =N9*0.96 -> 2.0 | N9: 2.1 | Q9: =R9*0.96 -> 2.3 | R9: =S9*0.96 -> 2.4 | S9: 2.5 | V9: =W9*0.96 -> 2.9 | W9: =X9*0.96 -> 3.0 | X9: 3.1 | AA9: =AB9*0.96 -> 3.4 | AB9: =AC9*0.96 -> 3.6 | AC9: 3.7 | AG9: 116.0 | AH9: 20 | AI9: 800 | AJ9: 570
A10: VT1050(C)/CT1050HC(HS)/CE(FST)1050HC/JA1050HC | B10: 1.3 | C10: 1.4 | D10: 0.0 | E10: 0.0 | G10: 1.6 | H10: 1.7 | I10: 0.0 | J10: 0.0 | L10: 2.0 | M10: 2.1 | N10: 0.0 | O10: 0.0 | Q10: 2.3 | R10: 2.4 | S10: 0.0 | T10: 0.0 | V10: 2.9 | W10: 3.0 | X10: 0.0 | Y10: 0.0 | AA10: 3.5 | AB10: 3.6 | AC10: 0.0 | AD10: 0.0 | AG10: 112.0 | AH10: 20 | AI10: 825 | AJ10: 550
A11: C523(R)/FS523P(R)/C522(PC)/C521/FS521(A)/FS522PC | B11: 1.4 | C11: 1.5 | D11: =E11*0.96 -> 0.0 | E11: 0.0 | G11: 0.0 | I11: =J11*0.96 -> 0.0 | J11: 0.0 | L11: 2.0 | M11: 2.1 | N11: =O11*0.96 -> 0.0 | O11: 0.0 | Q11: 0.0 | R11: 0.0 | S11: =T11*0.96 -> 0.0 | T11: 0.0 | V11: 3.1 | W11: 3.2 | X11: =Y11*0.96 -> 0.0 | Y11: 0.0 | AA11: 0.0 | AB11: 0.0 | AC11: =AD11*0.96 -> 0.0 | AD11: 0.0 | AG11: 63.0 | AH11: 16 | AI11: 525
A12: C522S/C518 | B12: 1.4 | C12: 1.5 | D12: =E12*0.96 -> 0.0 | E12: =F12*0.96 -> 0.0 | G12: 0.0 | I12: =J12*0.96 -> 0.0 | J12: =K12*0.96 -> 0.0 | L12: 2.0 | M12: 2.1 | N12: =O12*0.96 -> 0.0 | O12: =P12*0.96 -> 0.0 | Q12: 0.0 | R12: 0.0 | S12: =T12*0.96 -> 0.0 | T12: =U12*0.96 -> 0.0 | V12: 3.1 | W12: 3.2 | X12: =Y12*0.96 -> 0.0 | Y12: =Z12*0.96 -> 0.0 | AA12: 0.0 | AB12: 0.0 | AC12: =AD12*0.96 -> 0.0 | AD12: =AE12*0.96 -> 0.0 | AG12: 47.0 | AH12: 16 | AI12: 525
A13: C522S/Y | B13: =C13*0.96 -> 1.4 | C13: 1.5 | D13: =E13*0.96 -> 0.0 | E13: =F13*0.96 -> 0.0 | G13: =H13*0.96 -> 0.0 | I13: =J13*0.96 -> 0.0 | J13: =K13*0.96 -> 0.0 | L13: =M13*0.96 -> 2.0 | M13: 2.1 | N13: =O13*0.96 -> 0.0 | O13: =P13*0.96 -> 0.0 | Q13: =R13*0.96 -> 0.0 | R13: 0.0 | S13: =T13*0.96 -> 0.0 | T13: =U13*0.96 -> 0.0 | V13: =W13*0.96 -> 3.1 | W13: 3.2 | X13: =Y13*0.96 -> 0.0 | Y13: =Z13*0.96 -> 0.0 | AA13: =AB13*0.96 -> 0.0 | AB13: 0.0 | AC13: =AD13*0.96 -> 0.0 | AD13: =AE13*0.96 -> 0.0 | AG13: 63.0 | AH13: 16 | AI13: 525
A14: C622PC | B14: 1.5 | C14: 1.6 | D14: 0.0 | E14: 0.0 | G14: 0.0 | H14: =I14*0.96 -> 0.0 | I14: 0.0 | J14: 0.0 | L14: 2.1 | M14: 2.2 | N14: 0.0 | O14: 0.0 | Q14: 0.0 | R14: 0.0 | S14: 0.0 | T14: 0.0 | V14: 3.3 | W14: 3.4 | X14: 0.0 | Y14: 0.0 | AA14: 0.0 | AB14: 0.0 | AC14: 0.0 | AD14: 0.0 | AG14: 93.0 | AH14: 16 | AI14: 525
A15: C525P(R)/C625P(R)/C524P/C624P | B15: =C15*0.96 -> 1.5 | C15: 1.6 | D15: =E15*0.96 -> 0.0 | E15: =F15*0.96 -> 0.0 | G15: =H15*0.96 -> 0.0 | H15: =I15*0.96 -> 0.0 | I15: =J15*0.96 -> 0.0 | J15: =K15*0.96 -> 0.0 | L15: =M15*0.96 -> 2.1 | M15: 2.2 | N15: =O15*0.96 -> 0.0 | O15: =P15*0.96 -> 0.0 | Q15: =R15*0.96 -> 0.0 | R15: 0.0 | S15: =T15*0.96 -> 0.0 | T15: =U15*0.96 -> 0.0 | V15: =W15*0.96 -> 3.3 | W15: 3.4 | X15: =Y15*0.96 -> 0.0 | AA15: =AB15*0.96 -> 0.0 | AB15: 0.0 | AC15: =AD15*0.96 -> 0.0 | AD15: =AE15*0.96 -> 0.0 | AG15: 93.0 | AH15: 16 | AI15: 560
A16: C630S/CE(FS)630H/CE631H | B16: 1.3 | C16: 1.4 | D16: 0.0 | E16: 0.0 | G16: 1.6 | H16: 1.7 | I16: 0.0 | J16: 0.0 | L16: 2.0 | M16: 2.1 | N16: 0.0 | O16: 0.0 | Q16: 2.4 | R16: 2.5 | S16: 0.0 | T16: 0.0 | V16: 3.0 | W16: 3.1 | X16: 0.0 | Y16: 0.0 | AA16: 3.5 | AB16: 3.6 | AC16: 0.0 | AD16: 0.0 | AG16: 93.0 | AH16: 18 | AI16: 642 | AJ16: 530
A17: CE(FST)640HC/CE641HC | B17: =C17*0.96 -> 1.3 | C17: 1.4 | D17: =E17*0.96 -> 0.0 | E17: =F17*0.96 -> 0.0 | G17: =H17*0.96 -> 1.6 | H17: 1.7 | I17: =J17*0.96 -> 0.0 | J17: =K17*0.96 -> 0.0 | L17: =M17*0.96 -> 2.0 | M17: 2.1 | N17: =O17*0.96 -> 0.0 | O17: =P17*0.96 -> 0.0 | Q17: =R17*0.96 -> 2.4 | R17: 2.5 | S17: =T17*0.96 -> 0.0 | T17: =U17*0.96 -> 0.0 | V17: =W17*0.96 -> 3.0 | W17: 3.1 | X17: =Y17*0.96 -> 0.0 | Y17: =Z17*0.96 -> 0.0 | AA17: =AB17*0.96 -> 3.5 | AB17: 3.6 | AC17: =AD17*0.96 -> 0.0 | AD17: =AE17*0.96 -> 0.0 | AG17: 93.0 | AH17: 18 | AI17: 728 | AJ17: 530
A18: CT1020 | B18: 1.4 | C18: 1.5 | D18: 0.0 | E18: 0.0 | G18: 0.0 | H18: =I18*0.96 -> 0.0 | I18: 0.0 | J18: 0.0 | L18: 2.1 | M18: 2.2 | N18: 0.0 | O18: 0.0 | Q18: 0.0 | R18: =S18*0.96 -> 0.0 | S18: 0.0 | T18: 0.0 | V18: 3.0 | W18: 3.1 | X18: 0.0 | Y18: 0.0 | AA18: 0.0 | AB18: =AC18*0.96 -> 0.0 | AC18: 0.0 | AD18: 0.0 | AG18: 112.0 | AH18: 20 | AI18: 825 | AJ18: 550
A19: V521(A) | B19: 1.4 | C19: 1.5 | D19: 0.0 | E19: =F19*0.96 -> 0.0 | G19: 0.0 | H19: =I19*0.96 -> 0.0 | I19: 0.0 | J19: =K19*0.96 -> 0.0 | L19: 2.0 | M19: 2.1 | N19: 0.0 | O19: =P19*0.96 -> 0.0 | Q19: 0.0 | R19: =S19*0.96 -> 0.0 | S19: 0.0 | T19: =U19*0.96 -> 0.0 | V19: 3.0 | W19: 3.1 | X19: 0.0 | Y19: =Z19*0.96 -> 0.0 | AA19: 0.0 | AB19: =AC19*0.96 -> 0.0 | AC19: 0.0 | AD19: =AE19*0.96 -> 0.0 | AG19: 63.0 | AH19: 16 | AI19: 495
A20: V518(A) | B20: 1.4 | C20: 1.5 | D20: 0.0 | E20: 0.0 | G20: 0.0 | H20: 0.0 | I20: 0.0 | J20: 0.0 | L20: 2.0 | M20: 2.1 | N20: 0.0 | O20: 0.0 | Q20: 0.0 | R20: 0.0 | S20: 0.0 | T20: 0.0 | V20: 3.0 | W20: 3.1 | X20: 0.0 | Y20: 0.0 | AA20: 0.0 | AB20: 0.0 | AC20: 0.0 | AD20: 0.0 | AG20: 47.0 | AH20: 16 | AI20: 410
A21: V522 | B21: 1.4 | C21: 1.5 | G21: 0.0 | L21: 2.0 | M21: 2.1 | Q21: 0.0 | V21: 3.0 | W21: 3.1 | AA21: 0.0 | AG21: 69.8 | AH21: 16 | AI21: 520
A22: V630 | B22: 1.4 | C22: 1.5 | D22: 0.0 | E22: 0.0 | G22: 0.0 | H22: 0.0 | I22: 0.0 | J22: 0.0 | L22: 1.9 | M22: 2.0 | N22: 0.0 | O22: 0.0 | Q22: 0.0 | R22: 0.0 | S22: 0.0 | T22: 0.0 | V22: 3.0 | W22: 3.1 | X22: 0.0 | Y22: 0.0 | AA22: 0.0 | AB22: 0.0 | AC22: 0.0 | AD22: 0.0 | AG22: 93.0 | AH22: 18 | AI22: 642 | AJ22: 530
A23: VE640C | B23: 1.3 | C23: 1.4 | D23: =E23*0.96 -> 0.0 | E23: 0.0 | G23: 1.6 | H23: 1.7 | I23: =J23*0.96 -> 0.0 | J23: 0.0 | L23: 2.0 | M23: 2.1 | N23: =O23*0.96 -> 0.0 | O23: 0.0 | Q23: 2.3 | R23: 2.4 | S23: =T23*0.96 -> 0.0 | T23: 0.0 | V23: 2.9 | W23: 3.0 | X23: =Y23*0.96 -> 0.0 | Y23: 0.0 | AA23: 3.5 | AB23: 3.6 | AC23: =AD23*0.96 -> 0.0 | AD23: 0.0 | AG23: 93.0 | AH23: 18 | AI23: 728 | AJ23: 530
A24: C615 | B24: 1.3 | C24: 1.4 | D24: =E24*0.96 -> 0.0 | E24: 0.0 | G24: 0.0 | H24: =I24*0.96 -> 0.0 | I24: =J24*0.96 -> 0.0 | J24: 0.0 | L24: 1.9 | M24: 2.0 | N24: =O24*0.96 -> 0.0 | O24: 0.0 | Q24: 0.0 | R24: =S24*0.96 -> 0.0 | S24: =T24*0.96 -> 0.0 | T24: 0.0 | V24: 3.1 | W24: 3.2 | X24: =Y24*0.96 -> 0.0 | Y24: 0.0 | AA24: 0.0 | AB24: =AC24*0.96 -> 0.0 | AC24: =AD24*0.96 -> 0.0 | AD24: 0.0 | AG24: 90.0 | AH24: 18 | AI24: 620 | AJ24: 440
A25: CT615 | B25: 1.3 | C25: 1.4 | D25: =E25*0.96 -> 0.0 | E25: 0.0 | G25: 0.0 | H25: =I25*0.96 -> 0.0 | I25: =J25*0.96 -> 0.0 | J25: 0.0 | L25: 1.9 | M25: 2.0 | N25: =O25*0.96 -> 0.0 | O25: 0.0 | Q25: 0.0 | R25: =S25*0.96 -> 0.0 | S25: =T25*0.96 -> 0.0 | T25: 0.0 | V25: 3.1 | W25: 3.2 | X25: =Y25*0.96 -> 0.0 | Y25: 0.0 | AA25: 0.0 | AB25: =AC25*0.96 -> 0.0 | AC25: =AD25*0.96 -> 0.0 | AD25: 0.0 | AG25: 90.0 | AH25: 18 | AI25: 720 | AJ25: 510
A26: FSC641/FSC1041 | B26: 1.0 | C26: 1.1 | D26: 1.1 | E26: 1.2 | F26: 1.2 | G26: 1.9 | H26: 1.9 | I26: 2.0 | J26: 2.1 | K26: 2.2 | L26: 1.4 | M26: 1.4 | N26: 1.5 | O26: 1.5 | P26: 1.6 | Q26: 2.5 | R26: 2.7 | S26: 2.8 | T26: 2.9 | U26: 3.0 | V26: 2.2 | W26: 2.3 | X26: 2.4 | Y26: 2.5 | Z26: 2.6 | AA26: 4.1 | AB26: 4.2 | AC26: 4.4 | AD26: 4.6 | AE26: 4.8 | AG26: 96.0 | AH26: 18 | AI26: 645 | AJ26: 467
A27: FSC615W | B27: 1.2 | C27: 1.3 | D27: 1.3 | E27: 1.4 | G27: 0.0 | H27: 0.0 | I27: 0.0 | L27: 1.5 | M27: 1.6 | N27: 1.7 | O27: 1.7 | Q27: 0.0 | R27: 0.0 | S27: 0.0 | T27: 0.0 | V27: 2.6 | W27: 2.7 | X27: 2.8 | Y27: 2.9 | AA27: 0.0 | AB27: 0.0 | AC27: 0.0 | AD27: 0.0 | AG27: 90.0 | AH27: 18 | AI27: 670 | AJ27: 420
A28: FSC1015W | B28: 1.1 | C28: 1.1 | D28: 1.2 | E28: 1.2 | G28: 2.0 | H28: 2.1 | I28: 2.2 | J28: 2.3 | L28: 1.4 | M28: 1.5 | N28: 1.5 | O28: 1.6 | Q28: 2.6 | R28: 2.7 | S28: 2.8 | T28: 2.9 | V28: 2.3 | W28: 2.4 | X28: 2.5 | Y28: 2.6 | AA28: 4.3 | AB28: 4.5 | AC28: 4.7 | AD28: 4.9 | AG28: 90.0 | AH28: 20 | AI28: 740 | AJ28: 540
A29: V600W | B29: 1.3 | C29: 1.4 | D29: 0.0 | E29: 0.0 | G29: 0.0 | H29: 0.0 | I29: 0.0 | J29: 0.0 | L29: 1.8 | M29: 1.9 | N29: 0.0 | O29: 0.0 | Q29: 0.0 | R29: 0.0 | S29: 0.0 | T29: 0.0 | V29: 3.0 | W29: 3.1 | X29: 0.0 | Y29: 0.0 | AA29: 0.0 | AB29: 0.0 | AC29: 0.0 | AD29: 0.0 | AG29: 90.0 | AH29: 18 | AI29: 520 | AJ29: 440
A30: VT600W | B30: 1.3 | C30: 1.4 | D30: 0.0 | E30: 0.0 | G30: 0.0 | H30: 0.0 | I30: 0.0 | J30: 0.0 | L30: 1.8 | M30: 1.9 | N30: 0.0 | O30: 0.0 | Q30: 0.0 | R30: 0.0 | S30: 0.0 | T30: 0.0 | V30: 3.0 | W30: 3.1 | X30: 0.0 | Y30: 0.0 | AA30: 0.0 | AB30: 0.0 | AC30: 0.0 | AD30: 0.0 | AG30: 90.0 | AH30: 18 | AI30: 730 | AJ30: 490
A31: YE(YSE)1051HC/YE(YM)1050HC/YMS1050HC | B31: 1.3 | C31: 1.4 | D31: 0.0 | E31: 0.0 | G31: 1.6 | H31: 1.7 | I31: 0.0 | J31: 0.0 | L31: 2.0 | M31: 2.1 | N31: 0.0 | O31: 0.0 | Q31: 2.3 | R31: 2.4 | S31: 0.0 | T31: 0.0 | V31: 2.9 | W31: 3.0 | X31: 0.0 | Y31: 0.0 | AA31: 3.5 | AB31: 3.6 | AC31: 0.0 | AD31: 0.0 | AG31: 116.0 | AH31: 20 | AI31: 825 | AJ31: 550

Sheet 吐出量表 (hidden)
B1: 1.0MPa | C1: 1.5MPa | D1: 2.0MPa | F1: 散布幅 | G1: 走行距離（ｍ）
A2: Φ0.8 | B2: 0.98 | C2: 1.21 | D2: 1.40 | F2: 3m | G2: 333
A3: Φ1.0 | B3: 1.29 | C3: 1.59 | D3: 1.83 | F3: 3.5m | G3: 285
A4: Φ1.2 | B4: 1.72 | C4: 2.10 | D4: 2.37 | F4: 4m | G4: 250 | I4: 横(m) | J4: =散布幅×２
A5: Φ1.2(3H) | B5: 2.58 | C5: 3.17 | D5: 3.64 | F5: 4.5m | G5: 222 | I5: 縦(m) | J5: =10a÷横幅(m)
A6: Φ1.5 | B6: 2.35 | C6: 2.85 | D6: 3.30 | F6: 5m | G6: 200 | I6: 走行距離 | J6: =縦×１（両側散布）+縦×２×1/2（片側散布）=縦×２往復
A7: Φ1.5(3H) | B7: 4.23 | C7: 4.89 | D7: 5.31 | F7: 5.6m | G7: 177 | J7: =1000㎡÷（散布幅×2列）×2往復
A8: Φ1.8 | B8: 2.80 | C8: 3.50 | D8: 4.06 | F8: 6m | G8: 167 | J8: =1000÷散布幅
A9: Φ1.8(3H) | B9: 5.04 | C9: 6.01 | D9: 6.81 | F9: 6.5m | G9: 154
A10: 黄 | B10: 1.01 | C10: 1.22 | D10: 1.40 | F10: 7m | G10: 143
A11: オレンジ | B11: 1.34 | C11: 1.62 | D11: 1.85 | F11: 7.5m | G11: 133
A12: 赤 | B12: 1.94 | C12: 2.37 | D12: 2.74 | F12: 8m | G12: 125
A13: 緑 | B13: 2.42 | C13: 2.97 | D13: 3.41
A14: SV-23-40K | B14: 1.9 | C14: 2.3
A15: SV-30-55K | B15: 2.5 | C15: 3.0
A16: CV1080 | B16: 0.9 | C16: 1.1
A17: CV1780 | B17: 1.40 | C17: 1.80
A18: 固定φ0.8 | B18: 0.66 | C18: 0.81 | D18: 0.93
A19: 固定φ1.0 | B19: 1.53 | C19: 1.85 | D19: 2.12
A20: 固定φ1.2 | B20: 1.85 | C20: 2.23 | D20: 2.55
A21: 固定φ1.5 | B21: 3.11 | C21: 3.77 | D21: 4.33

Sheet 追加登録 (hidden)
B1: 追加する製品データを入力後、「製品データ追加」ボタンをクリックしてください。
B4: 製品名 | D4: C523/FS523P
B5: エンジン定格回転数 | D5: 2500 | E5: rpm | F5: ←リストから選択（それ以外の回転数は対応不可）。
B6: 定格回転時車速 | C6: 低-1 | D6: 1.5 | E6: km/h
C7: 中-1 | D7: 0 | E7: km/h | F7: ←副変速に「中」がない機種は、中-1～3は0にする。
C8: 低-2 | D8: 2.1 | E8: km/h
C9: 中-2 | D9: 0 | E9: km/h
C10: 低-3 | D10: 3.2 | E10: km/h
C11: 中-3 | D11: 0 | E11: km/h
B12: 噴霧ポンプ吐出量 | D12: 63 | E12: L/分 | F12: ←カタログ値（余水考慮前）を入力する。
B13: 使用時風量 | C13: H側 | D13: 525 | E13: ㎥/分 | F13: ←風量切り替えがない機種はH側に入力する。
C14: L側 | E14: ㎥/分
B15: ノズル個数 | D15: 16 | E15: 個
B25: ※登録したデータを削除するときは、「車速表」シートのデータを手動で行削除してください。
